[Event "Titled Tuesday Blitz February 07 Early 2023"]
[White "Kozak, Adam"]
[Black "Pacan-Milej, Kosma"]
[WhiteFideId "753246"]
[BlackFideId "21800537"]
[WhiteElo "2572"]
[BlackElo "2402"]
[Result "1-0"]
[Round "07"]
[TimeControl "180+2"]
[Date "2023.02.07"]
[WhiteClock "0:00:20"]
[BlackClock "0:00:01"]

1. c4 {[%clk 0:02:44]}  Nf6 {[%clk 0:02:59]} 2. Nc3 {[%clk 0:02:43]}  g6 {[%clk 0:03:00]} 3. e4 {[%clk 0:02:43]}  d6 {[%clk 0:03:00]} 4. d4 {[%clk 0:02:43]}  Bg7 {[%clk 0:03:01]} 5. Nf3 {[%clk 0:02:43]}  O-O {[%clk 0:03:01]} 6. Be2 {[%clk 0:02:44]}  e5 {[%clk 0:03:00]} 7. O-O {[%clk 0:02:44]}  Bg4 {[%clk 0:03:00]} 8. Be3 {[%clk 0:02:43]}  Bxf3 {[%clk 0:02:59]} 9. Bxf3 {[%clk 0:02:43]}  exd4 {[%clk 0:03:00]} 10. Bxd4 {[%clk 0:02:43]}  Nc6 {[%clk 0:03:00]} 11. Be3 {[%clk 0:02:43]}  Nd7 {[%clk 0:03:00]} 12. Be2 {[%clk 0:02:43]}  Re8 {[%clk 0:03:00]} 13. f3 {[%clk 0:02:39]}  Bxc3 {[%clk 0:02:53]} 14. bxc3 {[%clk 0:02:40]}  Nc5 {[%clk 0:02:50]} 15. Bd4 {[%clk 0:02:38]}  Qg5 {[%clk 0:02:44]} 16. Rb1 {[%clk 0:02:33]}  b6 {[%clk 0:02:37]} 17. Bf2 {[%clk 0:02:33]}  Ne6 {[%clk 0:02:34]} 18. Kh1 {[%clk 0:02:17]}  Nf4 {[%clk 0:02:28]} 19. g3 {[%clk 0:02:17]}  Nxe2 {[%clk 0:02:22]} 20. Qxe2 {[%clk 0:02:18]}  f5 {[%clk 0:02:21]} 21. Rb5 {[%clk 0:02:09]}  a6 {[%clk 0:02:16]} 22. Rd5 {[%clk 0:02:05]}  Ne7 {[%clk 0:02:10]} 23. Rd4 {[%clk 0:02:00]}  Nc6 {[%clk 0:01:57]} 24. Rd5 {[%clk 0:02:00]}  Qf6 {[%clk 0:01:51]} 25. Bd4 {[%clk 0:01:53]}  Nxd4 {[%clk 0:01:43]} 26. Rxd4 {[%clk 0:01:50]}  fxe4 {[%clk 0:01:39]} 27. Rxe4 {[%clk 0:01:50]}  Rxe4 {[%clk 0:01:31]} 28. Qxe4 {[%clk 0:01:50]}  Rf8 {[%clk 0:01:31]} 29. Qd4 {[%clk 0:01:47]}  Qxd4 {[%clk 0:01:26]} 30. cxd4 {[%clk 0:01:47]}  Re8 {[%clk 0:01:26]} 31. Kg2 {[%clk 0:01:40]}  Re3 {[%clk 0:01:24]} 32. c5 {[%clk 0:01:20]}  dxc5 {[%clk 0:01:18]} 33. dxc5 {[%clk 0:01:21]}  Re2+ {[%clk 0:01:16]} 34. Kh3 {[%clk 0:01:21]}  Rxa2 {[%clk 0:01:11]} 35. Rd1 {[%clk 0:01:09]}  b5 {[%clk 0:01:00]} 36. Rd7 {[%clk 0:01:04]}  b4 {[%clk 0:00:53]} 37. Rxc7 {[%clk 0:01:04]}  a5 {[%clk 0:00:53]} 38. Ra7 {[%clk 0:00:58]}  a4 {[%clk 0:00:37]} 39. c6 {[%clk 0:00:53]}  a3 {[%clk 0:00:24]} 40. Rb7 {[%clk 0:00:35]}  Rc2 {[%clk 0:00:17]} 41. Rxb4 {[%clk 0:00:31]}  Rxc6 {[%clk 0:00:17]} 42. Ra4 {[%clk 0:00:32]}  Rc3 {[%clk 0:00:17]} 43. f4 {[%clk 0:00:32]}  Kg7 {[%clk 0:00:17]} 44. Kg4 {[%clk 0:00:31]}  h5+ {[%clk 0:00:15]} 45. Kh4 {[%clk 0:00:30]}  Kh6 {[%clk 0:00:15]} 46. Ra6 {[%clk 0:00:29]}  Rc2 {[%clk 0:00:13]} 47. Kh3 {[%clk 0:00:23]}  a2 {[%clk 0:00:13]} 48. f5 {[%clk 0:00:23]}  Kh7 {[%clk 0:00:04]} 49. fxg6+ {[%clk 0:00:23]}  Kg7 {[%clk 0:00:04]} 50. Kh4 {[%clk 0:00:23]}  Rxh2+ {[%clk 0:00:03]} 51. Kg5 {[%clk 0:00:23]}  Rb2 {[%clk 0:00:04]} 52. Ra7+ {[%clk 0:00:23]}  Kg8 {[%clk 0:00:02]} 53. Kh6 {[%clk 0:00:22]}  Rb8 {[%clk 0:00:01]} 54. Rxa2 {[%clk 0:00:20]} 1-0


[Site "https://www.chess.com"]

[Event "Titled Tuesday Blitz February 07 Early 2023"]
[White "Vlassov, Nikolai"]
[Black "Ozen, Bahadir"]
[WhiteFideId "4103360"]
[BlackFideId "6337058"]
[WhiteElo "2283"]
[BlackElo "2369"]
[Result "1/2-1/2"]
[Round "07"]
[TimeControl "180+2"]
[Date "2023.02.07"]
[WhiteClock "0:00:28"]
[BlackClock "0:00:26"]

1. e4 {[%clk 0:03:00]}  d6 {[%clk 0:02:57]} 2. f4 {[%clk 0:03:00]}  e6 {[%clk 0:02:50]} 3. Nf3 {[%clk 0:03:00]}  Ne7 {[%clk 0:02:51]} 4. Nc3 {[%clk 0:02:59]}  a6 {[%clk 0:02:50]} 5. d4 {[%clk 0:02:59]}  b5 {[%clk 0:02:49]} 6. Be3 {[%clk 0:02:59]}  Bb7 {[%clk 0:02:49]} 7. Bd3 {[%clk 0:02:59]}  Nd7 {[%clk 0:02:46]} 8. Qd2 {[%clk 0:02:56]}  Nf6 {[%clk 0:02:38]} 9. a3 {[%clk 0:02:44]}  g6 {[%clk 0:02:37]} 10. O-O-O {[%clk 0:02:30]}  Qd7 {[%clk 0:02:29]} 11. Rhg1 {[%clk 0:02:27]}  Ng4 {[%clk 0:02:27]} 12. Kb1 {[%clk 0:02:19]}  Nxe3 {[%clk 0:02:26]} 13. Qxe3 {[%clk 0:02:19]}  Bg7 {[%clk 0:02:26]} 14. g4 {[%clk 0:02:18]}  O-O-O {[%clk 0:02:17]} 15. f5 {[%clk 0:02:13]}  exf5 {[%clk 0:01:55]} 16. gxf5 {[%clk 0:02:13]}  Kb8 {[%clk 0:01:53]} 17. Ng5 {[%clk 0:02:09]}  Nc6 {[%clk 0:01:49]} 18. Bf1 {[%clk 0:01:53]}  Rde8 {[%clk 0:01:47]} 19. Nd5 {[%clk 0:01:38]}  Ne7 {[%clk 0:01:17]} 20. Nxe7 {[%clk 0:01:09]}  Qxe7 {[%clk 0:01:18]} 21. Qb3 {[%clk 0:01:03]}  Bf6 {[%clk 0:01:08]} 22. Nxf7 {[%clk 0:00:57]}  Rhf8 {[%clk 0:01:08]} 23. fxg6 {[%clk 0:00:56]}  hxg6 {[%clk 0:01:07]} 24. e5 {[%clk 0:00:51]}  Qxf7 {[%clk 0:01:01]} 25. Qxf7 {[%clk 0:00:46]}  Rxf7 {[%clk 0:01:00]} 26. exf6 {[%clk 0:00:46]}  Rxf6 {[%clk 0:01:00]} 27. Bd3 {[%clk 0:00:46]}  Rh8 {[%clk 0:00:58]} 28. Rd2 {[%clk 0:00:41]}  Rh6 {[%clk 0:00:52]} 29. c3 {[%clk 0:00:38]}  Ka7 {[%clk 0:00:49]} 30. b4 {[%clk 0:00:37]}  Kb6 {[%clk 0:00:50]} 31. Kc2 {[%clk 0:00:37]}  c5 {[%clk 0:00:49]} 32. dxc5+ {[%clk 0:00:34]}  dxc5 {[%clk 0:00:50]} 33. bxc5+ {[%clk 0:00:35]}  Kxc5 {[%clk 0:00:51]} 34. Rg5+ {[%clk 0:00:35]}  Kb6 {[%clk 0:00:51]} 35. c4 {[%clk 0:00:32]}  bxc4 {[%clk 0:00:50]} 36. Bxc4 {[%clk 0:00:32]}  Rc6 {[%clk 0:00:32]} 37. Kb3 {[%clk 0:00:31]}  Rh3+ {[%clk 0:00:25]} 38. Rg3 {[%clk 0:00:28]}  Rxg3+ {[%clk 0:00:25]} 39. hxg3 {[%clk 0:00:28]}  Rf6 {[%clk 0:00:26]} 1/2-1/2


[Site "https://www.chess.com"]

[Event "Titled Tuesday Blitz February 07 Early 2023"]
[White "Ivic, Velimir"]
[Black "Averjanov, Alexey"]
[WhiteFideId "950122"]
[BlackFideId "14109867"]
[WhiteElo "2595"]
[BlackElo "2399"]
[Result "0-1"]
[Round "07"]
[TimeControl "180+2"]
[Date "2023.02.07"]
[WhiteClock "0:00:08"]
[BlackClock "0:00:06"]

1. e4 {[%clk 0:02:53]}  c6 {[%clk 0:03:00]} 2. Nf3 {[%clk 0:02:50]}  d5 {[%clk 0:03:00]} 3. Nc3 {[%clk 0:02:50]}  Bg4 {[%clk 0:02:58]} 4. h3 {[%clk 0:02:43]}  Bxf3 {[%clk 0:02:56]} 5. Qxf3 {[%clk 0:02:43]}  dxe4 {[%clk 0:02:56]} 6. Nxe4 {[%clk 0:02:43]}  Nd7 {[%clk 0:02:54]} 7. d4 {[%clk 0:02:43]}  Ngf6 {[%clk 0:02:54]} 8. c3 {[%clk 0:02:31]}  Nxe4 {[%clk 0:02:53]} 9. Qxe4 {[%clk 0:02:32]}  Nf6 {[%clk 0:02:54]} 10. Qf3 {[%clk 0:02:31]}  e6 {[%clk 0:02:54]} 11. Be2 {[%clk 0:02:31]}  Be7 {[%clk 0:02:54]} 12. O-O {[%clk 0:02:32]}  O-O {[%clk 0:02:55]} 13. Bf4 {[%clk 0:02:29]}  Nd5 {[%clk 0:02:55]} 14. Bd2 {[%clk 0:02:30]}  Bg5 {[%clk 0:02:55]} 15. Be1 {[%clk 0:02:29]}  b5 {[%clk 0:02:51]} 16. a4 {[%clk 0:02:28]}  a6 {[%clk 0:02:50]} 17. g3 {[%clk 0:02:25]}  g6 {[%clk 0:02:48]} 18. h4 {[%clk 0:02:25]}  Bh6 {[%clk 0:02:44]} 19. Qe4 {[%clk 0:02:21]}  Qd6 {[%clk 0:02:38]} 20. Bf3 {[%clk 0:02:21]}  Bg7 {[%clk 0:02:33]} 21. Bd2 {[%clk 0:02:19]}  h5 {[%clk 0:02:33]} 22. Rfe1 {[%clk 0:02:16]}  Rfb8 {[%clk 0:02:24]} 23. Qd3 {[%clk 0:02:03]}  Qd7 {[%clk 0:02:18]} 24. Ra2 {[%clk 0:01:59]}  Nb6 {[%clk 0:02:10]} 25. axb5 {[%clk 0:01:51]}  axb5 {[%clk 0:02:11]} 26. Rea1 {[%clk 0:01:51]}  Rxa2 {[%clk 0:02:07]} 27. Rxa2 {[%clk 0:01:52]}  Qb7 {[%clk 0:01:55]} 28. Bf4 {[%clk 0:01:50]}  Ra8 {[%clk 0:01:39]} 29. Rxa8+ {[%clk 0:01:45]}  Qxa8 {[%clk 0:01:39]} 30. Kg2 {[%clk 0:01:44]}  Nd5 {[%clk 0:01:35]} 31. Bd2 {[%clk 0:01:43]}  Qa1 {[%clk 0:01:31]} 32. b3 {[%clk 0:01:36]}  Qa3 {[%clk 0:01:22]} 33. Qc2 {[%clk 0:01:18]}  Qa1 {[%clk 0:00:52]} 34. Be4 {[%clk 0:00:45]}  Ne7 {[%clk 0:00:48]} 35. Bg5 {[%clk 0:00:41]}  Nd5 {[%clk 0:00:48]} 36. Bd2 {[%clk 0:00:42]}  Ne7 {[%clk 0:00:47]} 37. Qb1 {[%clk 0:00:32]}  Qxb1 {[%clk 0:00:45]} 38. Bxb1 {[%clk 0:00:33]}  Nd5 {[%clk 0:00:42]} 39. Kf3 {[%clk 0:00:32]}  Kf8 {[%clk 0:00:41]} 40. Be4 {[%clk 0:00:31]}  Ke7 {[%clk 0:00:40]} 41. Ke2 {[%clk 0:00:24]}  Kd7 {[%clk 0:00:38]} 42. Kd3 {[%clk 0:00:24]}  Nf6 {[%clk 0:00:35]} 43. Bf3 {[%clk 0:00:24]}  Nd5 {[%clk 0:00:35]} 44. c4 {[%clk 0:00:24]}  bxc4+ {[%clk 0:00:34]} 45. bxc4 {[%clk 0:00:24]}  Nf6 {[%clk 0:00:33]} 46. Bf4 {[%clk 0:00:25]}  Ng4 {[%clk 0:00:31]} 47. Bxg4 {[%clk 0:00:22]}  hxg4 {[%clk 0:00:32]} 48. Be5 {[%clk 0:00:20]}  f6 {[%clk 0:00:29]} 49. Bf4 {[%clk 0:00:21]}  f5 {[%clk 0:00:27]} 50. Ke3 {[%clk 0:00:21]}  c5 {[%clk 0:00:24]} 51. dxc5 {[%clk 0:00:20]}  e5 {[%clk 0:00:22]} 52. Bg5 {[%clk 0:00:20]}  Kc6 {[%clk 0:00:20]} 53. Be7 {[%clk 0:00:19]}  Bh6+ {[%clk 0:00:18]} 54. Ke2 {[%clk 0:00:19]}  e4 {[%clk 0:00:18]} 55. Bd6 {[%clk 0:00:19]}  Bc1 {[%clk 0:00:15]} 56. Be7 {[%clk 0:00:14]}  Ba3 {[%clk 0:00:14]} 57. Ke3 {[%clk 0:00:11]}  Bxc5+ {[%clk 0:00:11]} 58. Bxc5 {[%clk 0:00:11]}  Kxc5 {[%clk 0:00:12]} 59. Kf4 {[%clk 0:00:12]}  Kxc4 {[%clk 0:00:09]} 60. Kg5 {[%clk 0:00:13]}  Kd3 {[%clk 0:00:07]} 61. Kxg6 {[%clk 0:00:13]}  f4 {[%clk 0:00:06]} 62. h5 {[%clk 0:00:09]}  e3 {[%clk 0:00:06]} 63. fxe3 {[%clk 0:00:06]}  fxg3 {[%clk 0:00:02]} 64. h6 {[%clk 0:00:07]}  g2 {[%clk 0:00:03]} 65. h7 {[%clk 0:00:07]}  g1=Q {[%clk 0:00:03]} 66. h8=Q {[%clk 0:00:07]}  Qxe3 {[%clk 0:00:03]} 67. Qd8+ {[%clk 0:00:05]}  Ke2 {[%clk 0:00:03]} 68. Qc8 {[%clk 0:00:02]}  g3 {[%clk 0:00:04]} 69. Qc2+ {[%clk 0:00:02]}  Kf3 {[%clk 0:00:03]} 70. Qf5+ {[%clk 0:00:02]}  Kg2 {[%clk 0:00:04]} 71. Qd5+ {[%clk 0:00:02]}  Kg1 {[%clk 0:00:03]} 72. Qd1+ {[%clk 0:00:02]}  Kf2 {[%clk 0:00:04]} 73. Qc2+ {[%clk 0:00:02]}  Qe2 {[%clk 0:00:05]} 74. Qc5+ {[%clk 0:00:03]}  Kf1 {[%clk 0:00:04]} 75. Qf5+ {[%clk 0:00:02]}  Kg1 {[%clk 0:00:03]} 76. Qc5+ {[%clk 0:00:02]}  Kh2 {[%clk 0:00:03]} 77. Qc7 {[%clk 0:00:01]}  Qf3 {[%clk 0:00:03]} 78. Kh7 {[%clk 0:00:02]}  Kh1 {[%clk 0:00:03]} 79. Qc1+ {[%clk 0:00:01]}  Kh2 {[%clk 0:00:03]} 80. Qc7 {[%clk 0:00:01]}  Kh3 {[%clk 0:00:03]} 81. Qc8+ {[%clk 0:00:01]}  Kg2 {[%clk 0:00:03]} 82. Qc2+ {[%clk 0:00:01]}  Qf2 {[%clk 0:00:04]} 83. Qc6+ {[%clk 0:00:01]}  Kh2 {[%clk 0:00:04]} 84. Qc7 {[%clk 0:00:02]}  Kh1 {[%clk 0:00:05]} 85. Qc1+ {[%clk 0:00:01]}  Kg2 {[%clk 0:00:05]} 86. Qc6+ {[%clk 0:00:02]}  Kg1 {[%clk 0:00:05]} 87. Qc1+ {[%clk 0:00:02]}  Qf1 {[%clk 0:00:05]} 88. Qc5+ {[%clk 0:00:02]}  Kh2 {[%clk 0:00:06]} 89. Qc6 {[%clk 0:00:02]}  g2 {[%clk 0:00:06]} 90. Qc7+ {[%clk 0:00:03]}  Kh1 {[%clk 0:00:06]} 91. Qc6 {[%clk 0:00:03]}  Qf4 {[%clk 0:00:05]} 92. Kh8 {[%clk 0:00:02]}  Kh2 {[%clk 0:00:05]} 93. Qc2 {[%clk 0:00:02]}  Kg3 {[%clk 0:00:05]} 94. Qd3+ {[%clk 0:00:02]}  Qf3 {[%clk 0:00:05]} 95. Qd6+ {[%clk 0:00:02]}  Qf4 {[%clk 0:00:05]} 96. Qd3+ {[%clk 0:00:03]}  Kh2 {[%clk 0:00:05]} 97. Qc2 {[%clk 0:00:03]}  Kh1 {[%clk 0:00:05]} 98. Qc6 {[%clk 0:00:03]}  Kg1 {[%clk 0:00:06]} 99. Qc5+ {[%clk 0:00:03]}  Kf1 {[%clk 0:00:06]} 100. Qb5+ {[%clk 0:00:03]}  Kf2 {[%clk 0:00:06]} 101. Qb2+ {[%clk 0:00:03]}  Kg3 {[%clk 0:00:06]} 102. Qa3+ {[%clk 0:00:02]}  Kh4 {[%clk 0:00:07]} 103. Qe7+ {[%clk 0:00:03]}  Qg5 {[%clk 0:00:07]} 104. Qe4+ {[%clk 0:00:03]}  Kh3 {[%clk 0:00:07]} 105. Qd3+ {[%clk 0:00:02]}  Kh2 {[%clk 0:00:07]} 106. Qc2 {[%clk 0:00:03]}  Kh1 {[%clk 0:00:08]} 107. Qc6 {[%clk 0:00:03]}  Kh2 {[%clk 0:00:07]} 108. Qc7+ {[%clk 0:00:03]}  Qg3 {[%clk 0:00:07]} 109. Qc2 {[%clk 0:00:03]}  Kh1 {[%clk 0:00:08]} 110. Qc6 {[%clk 0:00:03]}  Kh2 {[%clk 0:00:07]} 111. Qc2 {[%clk 0:00:04]}  Kg1 {[%clk 0:00:07]} 112. Qc1+ {[%clk 0:00:04]}  Kf2 {[%clk 0:00:08]} 113. Qc2+ {[%clk 0:00:04]}  Kf3 {[%clk 0:00:08]} 114. Qc3+ {[%clk 0:00:05]}  Kg4 {[%clk 0:00:08]} 115. Qc8+ {[%clk 0:00:05]}  Kf4 {[%clk 0:00:08]} 116. Qc7+ {[%clk 0:00:05]}  Kf3 {[%clk 0:00:08]} 117. Qc6+ {[%clk 0:00:05]}  Ke2 {[%clk 0:00:08]} 118. Qc2+ {[%clk 0:00:06]}  Kf1 {[%clk 0:00:07]} 119. Qc1+ {[%clk 0:00:07]}  Qe1 {[%clk 0:00:07]} 120. Qc4+ {[%clk 0:00:05]}  Qe2 {[%clk 0:00:07]} 121. Qc1+ {[%clk 0:00:05]}  Kf2 {[%clk 0:00:08]} 122. Qc5+ {[%clk 0:00:05]}  Kg3 {[%clk 0:00:07]} 123. Qc7+ {[%clk 0:00:05]}  Kf3 {[%clk 0:00:07]} 124. Qc6+ {[%clk 0:00:06]}  Kg4 {[%clk 0:00:07]} 125. Qc8+ {[%clk 0:00:06]}  Kg5 {[%clk 0:00:07]} 126. Qc5+ {[%clk 0:00:05]}  Kh6 {[%clk 0:00:06]} 127. Qc6+ {[%clk 0:00:05]}  Kg5 {[%clk 0:00:06]} 128. Qc5+ {[%clk 0:00:06]}  Kg6 {[%clk 0:00:06]} 129. Qc6+ {[%clk 0:00:06]}  Kf5 {[%clk 0:00:06]} 130. Qc5+ {[%clk 0:00:06]}  Kf6 {[%clk 0:00:06]} 131. Qc6+ {[%clk 0:00:07]}  Kf5 {[%clk 0:00:06]} 132. Qd5+ {[%clk 0:00:07]}  Qe5+ {[%clk 0:00:06]} 133. Qxe5+ {[%clk 0:00:08]}  Kxe5 {[%clk 0:00:06]} 0-1


[Site "https://www.chess.com"]

[Event "Titled Tuesday Blitz February 07 Early 2023"]
[White "Manukyan, Sargis A."]
[Black "Kaasen, Tor Fredrik"]
[WhiteFideId "13303970"]
[BlackFideId "1516647"]
[WhiteElo "2158"]
[BlackElo "2480"]
[Result "1/2-1/2"]
[Round "07"]
[TimeControl "180+2"]
[Date "2023.02.07"]
[WhiteClock "0:00:10"]
[BlackClock "0:00:10"]

1. d4 {[%clk 0:03:00]}  Nf6 {[%clk 0:01:24]} 2. c4 {[%clk 0:02:55]}  g6 {[%clk 0:01:24]} 3. Nc3 {[%clk 0:02:53]}  Bg7 {[%clk 0:01:24]} 4. Nf3 {[%clk 0:02:52]}  O-O {[%clk 0:01:24]} 5. h3 {[%clk 0:02:52]}  d6 {[%clk 0:01:23]} 6. Bf4 {[%clk 0:02:52]}  Nbd7 {[%clk 0:01:18]} 7. e3 {[%clk 0:02:52]}  Qe8 {[%clk 0:01:18]} 8. Be2 {[%clk 0:02:49]}  e5 {[%clk 0:01:18]} 9. dxe5 {[%clk 0:02:50]}  dxe5 {[%clk 0:01:18]} 10. Bg3 {[%clk 0:02:48]}  c6 {[%clk 0:01:19]} 11. Qc2 {[%clk 0:02:47]}  Qe7 {[%clk 0:01:19]} 12. O-O {[%clk 0:02:43]}  Re8 {[%clk 0:01:19]} 13. a3 {[%clk 0:02:42]}  a5 {[%clk 0:01:19]} 14. b3 {[%clk 0:02:42]}  Nh5 {[%clk 0:01:10]} 15. Bh2 {[%clk 0:02:41]}  f5 {[%clk 0:01:10]} 16. Rfd1 {[%clk 0:02:35]}  Nc5 {[%clk 0:00:57]} 17. b4 {[%clk 0:02:31]}  axb4 {[%clk 0:00:57]} 18. axb4 {[%clk 0:02:32]}  Rxa1 {[%clk 0:00:58]} 19. Rxa1 {[%clk 0:02:31]}  Na6 {[%clk 0:00:57]} 20. b5 {[%clk 0:02:18]}  Nc5 {[%clk 0:00:57]} 21. bxc6 {[%clk 0:02:17]}  bxc6 {[%clk 0:00:58]} 22. Nd2 {[%clk 0:01:50]}  Nf6 {[%clk 0:00:58]} 23. Nb3 {[%clk 0:01:48]}  Nfd7 {[%clk 0:00:58]} 24. Nxc5 {[%clk 0:01:41]}  Nxc5 {[%clk 0:00:58]} 25. Na4 {[%clk 0:01:42]}  Be6 {[%clk 0:00:46]} 26. Bg3 {[%clk 0:01:32]}  Ra8 {[%clk 0:00:44]} 27. Ra2 {[%clk 0:01:15]}  Qa7 {[%clk 0:00:36]} 28. Nc3 {[%clk 0:01:14]}  Qb8 {[%clk 0:00:37]} 29. Rb2 {[%clk 0:01:10]}  Qa7 {[%clk 0:00:36]} 30. Ra2 {[%clk 0:01:10]}  Qb8 {[%clk 0:00:35]} 31. Rb2 {[%clk 0:01:09]}  Qc8 {[%clk 0:00:36]} 32. Ra2 {[%clk 0:01:06]}  h6 {[%clk 0:00:36]} 33. Kh2 {[%clk 0:01:04]}  Kh7 {[%clk 0:00:36]} 34. f3 {[%clk 0:00:57]}  Rxa2 {[%clk 0:00:35]} 35. Nxa2 {[%clk 0:00:57]}  Qb7 {[%clk 0:00:33]} 36. Nc1 {[%clk 0:00:55]}  e4 {[%clk 0:00:33]} 37. Bd6 {[%clk 0:00:48]}  Qb6 {[%clk 0:00:28]} 38. f4 {[%clk 0:00:36]}  Nb7 {[%clk 0:00:25]} 39. Ba3 {[%clk 0:00:34]}  Qxe3 {[%clk 0:00:25]} 40. Qb3 {[%clk 0:00:28]}  Qxf4+ {[%clk 0:00:23]} 41. Kh1 {[%clk 0:00:24]}  Na5 {[%clk 0:00:20]} 42. Qa4 {[%clk 0:00:22]}  Qd2 {[%clk 0:00:18]} 43. Qd1 {[%clk 0:00:18]}  Qxd1+ {[%clk 0:00:17]} 44. Bxd1 {[%clk 0:00:19]}  Nxc4 {[%clk 0:00:18]} 45. Bc5 {[%clk 0:00:20]}  f4 {[%clk 0:00:15]} 46. Nb3 {[%clk 0:00:18]}  Bd5 {[%clk 0:00:14]} 47. Kg1 {[%clk 0:00:17]}  g5 {[%clk 0:00:14]} 48. Kf1 {[%clk 0:00:17]}  Kg6 {[%clk 0:00:14]} 49. Bc2 {[%clk 0:00:18]}  Bc3 {[%clk 0:00:13]} 50. Nd4 {[%clk 0:00:17]}  Bxd4 {[%clk 0:00:13]} 51. Bxd4 {[%clk 0:00:18]}  Kf5 {[%clk 0:00:13]} 52. Ke2 {[%clk 0:00:18]}  h5 {[%clk 0:00:13]} 53. Kf2 {[%clk 0:00:18]}  g4 {[%clk 0:00:13]} 54. hxg4+ {[%clk 0:00:17]}  hxg4 {[%clk 0:00:14]} 55. g3 {[%clk 0:00:17]}  Kg5 {[%clk 0:00:07]} 56. gxf4+ {[%clk 0:00:13]}  Kxf4 {[%clk 0:00:08]} 57. Ba7 {[%clk 0:00:13]}  g3+ {[%clk 0:00:07]} 58. Ke2 {[%clk 0:00:10]}  e3 {[%clk 0:00:07]} 59. Bb8+ {[%clk 0:00:10]}  Kg4 {[%clk 0:00:07]} 60. Bd3 {[%clk 0:00:09]}  Bf3+ {[%clk 0:00:07]} 61. Ke1 {[%clk 0:00:04]}  Nb2 {[%clk 0:00:07]} 62. Bf1 {[%clk 0:00:03]}  g2 {[%clk 0:00:06]} 63. Bxg2 {[%clk 0:00:03]}  Bxg2 {[%clk 0:00:07]} 64. Ke2 {[%clk 0:00:04]}  Nc4 {[%clk 0:00:07]} 65. Kd3 {[%clk 0:00:04]}  Bd5 {[%clk 0:00:07]} 66. Ba7 {[%clk 0:00:04]}  Kf3 {[%clk 0:00:07]} 67. Bd4 {[%clk 0:00:05]}  e2 {[%clk 0:00:08]} 68. Bc3 {[%clk 0:00:06]}  Kf2 {[%clk 0:00:08]} 69. Kd4 {[%clk 0:00:07]}  e1=Q {[%clk 0:00:08]} 70. Bxe1+ {[%clk 0:00:08]}  Kxe1 {[%clk 0:00:08]} 71. Kc5 {[%clk 0:00:09]}  Kd2 {[%clk 0:00:09]} 72. Kb4 {[%clk 0:00:09]}  Kd3 {[%clk 0:00:09]} 73. Kc5 {[%clk 0:00:10]}  Kc3 {[%clk 0:00:10]} 1/2-1/2


[Site "https://www.chess.com"]

[Event "Titled Tuesday Blitz February 07 Early 2023"]
[White "Murzin, Volodar"]
[Black "tuschessCM1"]
[WhiteFideId "44155573"]
[WhiteElo "2604"]
[BlackElo "2638"]
[Result "0-1"]
[Round "07"]
[TimeControl "180+2"]
[Date "2023.02.07"]
[WhiteClock "0:00:01"]
[BlackClock "0:00:38"]

1. e4 {[%clk 0:03:00]}  c6 {[%clk 0:02:57]} 2. d4 {[%clk 0:02:58]}  d5 {[%clk 0:02:55]} 3. exd5 {[%clk 0:02:59]}  cxd5 {[%clk 0:02:56]} 4. Bd3 {[%clk 0:02:56]}  Nc6 {[%clk 0:02:55]} 5. c3 {[%clk 0:02:54]}  Nf6 {[%clk 0:02:54]} 6. Bf4 {[%clk 0:02:51]}  Bg4 {[%clk 0:02:50]} 7. Qb3 {[%clk 0:02:50]}  Qd7 {[%clk 0:02:49]} 8. Nd2 {[%clk 0:02:50]}  e6 {[%clk 0:02:48]} 9. Ngf3 {[%clk 0:02:50]}  Bxf3 {[%clk 0:02:46]} 10. Nxf3 {[%clk 0:02:49]}  Bd6 {[%clk 0:02:43]} 11. Ne5 {[%clk 0:02:41]}  Qc7 {[%clk 0:02:30]} 12. Bb5 {[%clk 0:02:29]}  Nd7 {[%clk 0:02:21]} 13. Nxd7 {[%clk 0:02:18]}  Bxf4 {[%clk 0:02:11]} 14. Nc5 {[%clk 0:02:15]}  O-O {[%clk 0:02:11]} 15. Bxc6 {[%clk 0:01:56]}  Qxc6 {[%clk 0:01:54]} 16. Nd3 {[%clk 0:01:47]}  Bd6 {[%clk 0:01:53]} 17. O-O {[%clk 0:01:45]}  b5 {[%clk 0:01:49]} 18. a3 {[%clk 0:01:23]}  a5 {[%clk 0:01:47]} 19. Rfc1 {[%clk 0:01:23]}  Rab8 {[%clk 0:01:29]} 20. Qd1 {[%clk 0:01:22]}  Rfc8 {[%clk 0:01:26]} 21. g3 {[%clk 0:01:11]}  g6 {[%clk 0:01:25]} 22. h4 {[%clk 0:01:10]}  h5 {[%clk 0:01:24]} 23. Kg2 {[%clk 0:01:09]}  Qb7 {[%clk 0:01:19]} 24. g4 {[%clk 0:00:52]}  Qe7 {[%clk 0:00:57]} 25. Kh3 {[%clk 0:00:31]}  Qf6 {[%clk 0:00:53]} 26. Qe2 {[%clk 0:00:20]}  b4 {[%clk 0:00:48]} 27. axb4 {[%clk 0:00:10]}  axb4 {[%clk 0:00:48]} 28. Ra6 {[%clk 0:00:04]}  Rd8 {[%clk 0:00:48]} 29. g5 {[%clk 0:00:02]}  Qf5+ {[%clk 0:00:47]} 30. Kg2 {[%clk 0:00:02]}  Rbc8 {[%clk 0:00:44]} 31. Qf3 {[%clk 0:00:02]}  Qe4 {[%clk 0:00:37]} 32. Qxe4 {[%clk 0:00:01]}  dxe4 {[%clk 0:00:38]} 0-1


[Site "https://www.chess.com"]

[Event "Titled Tuesday Blitz February 07 Early 2023"]
[White "Kosakowski, Jakub"]
[Black "Martynov, Pavel"]
[WhiteFideId "1185080"]
[BlackFideId "4101260"]
[WhiteElo "2485"]
[BlackElo "2414"]
[Result "1-0"]
[Round "07"]
[TimeControl "180+2"]
[Date "2023.02.07"]
[WhiteClock "0:01:23"]
[BlackClock "0:00:01"]

1. d4 {[%clk 0:02:54]}  d5 {[%clk 0:02:59]} 2. c4 {[%clk 0:02:53]}  e6 {[%clk 0:03:00]} 3. Nf3 {[%clk 0:02:53]}  c5 {[%clk 0:03:00]} 4. Nc3 {[%clk 0:02:52]}  Nc6 {[%clk 0:03:00]} 5. cxd5 {[%clk 0:02:51]}  exd5 {[%clk 0:03:01]} 6. g3 {[%clk 0:02:52]}  Nf6 {[%clk 0:03:01]} 7. Bg2 {[%clk 0:02:52]}  Be7 {[%clk 0:03:02]} 8. O-O {[%clk 0:02:52]}  O-O {[%clk 0:03:02]} 9. Bg5 {[%clk 0:02:49]}  cxd4 {[%clk 0:03:02]} 10. Nxd4 {[%clk 0:02:50]}  h6 {[%clk 0:03:03]} 11. Bf4 {[%clk 0:02:47]}  Bg4 {[%clk 0:03:03]} 12. Qd2 {[%clk 0:02:46]}  Qd7 {[%clk 0:02:59]} 13. Rfd1 {[%clk 0:02:45]}  Rfd8 {[%clk 0:02:58]} 14. Rac1 {[%clk 0:02:45]}  Rac8 {[%clk 0:02:57]} 15. Nb3 {[%clk 0:02:20]}  d4 {[%clk 0:02:28]} 16. Nb5 {[%clk 0:02:12]}  Bb4 {[%clk 0:02:08]} 17. Bxc6 {[%clk 0:02:06]}  Bxd2 {[%clk 0:01:51]} 18. Bxd7 {[%clk 0:02:05]}  Rxc1 {[%clk 0:01:42]} 19. Nxc1 {[%clk 0:02:04]}  Bxf4 {[%clk 0:00:55]} 20. Bxg4 {[%clk 0:01:55]}  Bxc1 {[%clk 0:00:54]} 21. Rxc1 {[%clk 0:01:55]}  Nxg4 {[%clk 0:00:51]} 22. Rd1 {[%clk 0:01:53]}  Rd5 {[%clk 0:00:35]} 23. Nxd4 {[%clk 0:01:50]}  Ne5 {[%clk 0:00:31]} 24. e3 {[%clk 0:01:46]}  g6 {[%clk 0:00:26]} 25. Rc1 {[%clk 0:01:43]}  Rd7 {[%clk 0:00:23]} 26. Kg2 {[%clk 0:01:41]}  h5 {[%clk 0:00:22]} 27. b3 {[%clk 0:01:39]}  a6 {[%clk 0:00:22]} 28. Rc5 {[%clk 0:01:39]}  Nd3 {[%clk 0:00:20]} 29. Rc8+ {[%clk 0:01:38]}  Kg7 {[%clk 0:00:20]} 30. a4 {[%clk 0:01:38]}  Nb4 {[%clk 0:00:15]} 31. Rc4 {[%clk 0:01:37]}  Nd3 {[%clk 0:00:15]} 32. a5 {[%clk 0:01:37]}  Rd5 {[%clk 0:00:13]} 33. b4 {[%clk 0:01:37]}  Kg8 {[%clk 0:00:04]} 34. f4 {[%clk 0:01:34]}  Kg7 {[%clk 0:00:04]} 35. Kf3 {[%clk 0:01:34]}  Rd6 {[%clk 0:00:02]} 36. Ke2 {[%clk 0:01:34]}  Nb2 {[%clk 0:00:02]} 37. Rc7 {[%clk 0:01:33]}  b6 {[%clk 0:00:02]} 38. Rc6 {[%clk 0:01:23]}  Rxc6 {[%clk 0:00:02]} 39. Nxc6 {[%clk 0:01:24]}  Nc4 {[%clk 0:00:02]} 40. Kd3 {[%clk 0:01:23]}  b5 {[%clk 0:00:01]} 41. Nb8 {[%clk 0:01:23]} 1-0


[Site "https://www.chess.com"]